fUSD/lending_fUSD_20250503
["ID","MTS","AMOUNT","RATE_DAILY","PERIOD"]
[359710429,1746270643991,-450.0,0.00019741,2]
[359710430,1746270644001,-450.0,0.00019741,2]
[359710431,1746270644010,-450.0,0.00019741,2]
[359710432,1746270644019,-259.9899502,0.00019741,2]
[359710433,1746270644027,-450.0,0.00019741,2]
[359710434,1746270644036,-450.0,0.00019741,2]
[359710435,1746270644045,-503.21061387,0.00019741,2]
[359710436,1746270644054,-450.0,0.00019741,2]
[359710437,1746270644063,-450.0,0.00019741,2]
[359710438,1746270644072,-412.52998212,0.00019741,2]
[359710439,1746270644083,-2227.52,0.00019741,2]
[359710440,1746270644093,-500.0,0.00019741,2]
[359710441,1746270644102,-450.0,0.00019741,2]
[359710442,1746270644111,-450.0,0.00019741,2]
[359710443,1746270644120,-450.0,0.00019741,2]
[359710444,1746270644130,-450.0,0.00019741,2]
[359710445,1746270644139,-452.66416676,0.00019741,2]
[359710446,1746270644148,-453.95785463,0.00019741,2]
[359710447,1746270644156,-450.0,0.00019741,2]
[359710448,1746270644165,-450.0,0.00019741,2]
[359710449,1746270644174,-450.0,0.00019741,2]
[359710450,1746270644183,-462.0196472,0.00019741,2]
[359710451,1746270644192,-508.49,0.00019741,2]
[359710452,1746270644201,-450.0,0.00019741,2]
[359710453,1746270644210,-457.5190132,0.00019741,2]
[359710454,1746270644219,-1093.7,0.00019741,2]
[359710455,1746270644228,-456.2052454,0.00019741,2]
[359710456,1746270644237,-450.0,0.00019741,2]
[359710457,1746270644246,-695.91,0.00019741,2]
[359710458,1746270644256,-450.0,0.00019741,2]
[359710459,1746270644267,-450.0,0.00019741,2]
[359710460,1746270644276,-464.37910096,0.00019741,2]
[359710461,1746270644285,-450.0,0.00019741,2]
[359710462,1746270644294,-450.0,0.00019741,2]
[359710463,1746270644305,-450.0,0.00019741,2]
[359710464,1746270644314,-450.0,0.00019741,2]
[359710465,1746270644323,-490.47,0.00019741,2]
[359710466,1746270644333,-450.0,0.00019741,2]
[359710467,1746270644343,-1274.11,0.00019741,2]
[359710468,1746270644352,-450.0,0.00019741,2]
[359710469,1746270644361,-450.0,0.00019741,2]
[359710470,1746270644370,-450.0,0.00019741,2]
[359710471,1746270644379,-450.0,0.00019741,2]
[359710472,1746270644388,-465.08,0.00019741,2]
[359710473,1746270644396,-450.0,0.00019741,2]
[359710474,1746270644405,-469.04,0.00019741,2]
[359710475,1746270644415,-450.0,0.00019741,2]
[359710476,1746270644426,-450.0,0.00019741,2]
[359710477,1746270644436,-450.0,0.00019741,2]
[359710478,1746270644447,-450.0,0.00019741,2]
[359710479,1746270644456,-515.3,0.00019741,2]
[359710480,1746270644465,-463.04,0.00019741,2]
[359710481,1746270644474,-450.0,0.00019741,2]
[359710482,1746270644483,-450.0,0.00019741,2]
[359710483,1746270644493,-523.56,0.00019741,2]
[359710484,1746270644502,-450.0,0.00019741,2]
[359710485,1746270644511,-450.0,0.00019741,2]
[359710486,1746270644520,-1522.53,0.00019741,2]
[359710487,1746270644529,-450.0,0.00019741,2]
[359710488,1746270644538,-450.0,0.00019741,2]
[359710489,1746270644547,-593.89,0.00019741,2]
[359710490,1746270644555,-538.21,0.00019741,2]
[359710491,1746270644564,-450.0,0.00019741,2]
[359710492,1746270644573,-726.46,0.00019741,2]
[359710493,1746270644582,-597.43,0.00019741,2]
[359710494,1746270644591,-725.4,0.00019741,2]
[359710495,1746270644600,-450.0,0.00019741,2]
[359710496,1746270644610,-644.62,0.00019741,2]
[359710497,1746270644620,-450.0,0.00019741,2]
[359710498,1746270644630,-470.42539181,0.00019741,2]
[359710499,1746270644639,-500.0,0.00019741,2]
[359710500,1746270644648,-505.97,0.00019741,2]
[359710501,1746270644658,-450.0,0.00019741,2]
[359710502,1746270644668,-955.97,0.00019741,2]
[359710503,1746270644678,-759.21,0.00019741,2]
[359710504,1746270644689,-450.0,0.00019741,2]
[359710505,1746270644698,-450.0,0.00019741,2]
[359710506,1746270644708,-1182.5,0.00019741,2]
[359710507,1746270644717,-450.0,0.00019741,2]
[359710508,1746270644726,-477.72,0.00019741,2]
[359710509,1746270644735,-450.0,0.00019741,2]
[359710510,1746270644744,-489.39,0.00019741,2]
[359710511,1746270644753,-450.0,0.00019741,2]
[359710512,1746270644762,-1395.8,0.00019741,2]
[359710513,1746270644772,-585.93,0.00019741,2]
[359710514,1746270644781,-450.0,0.00019741,2]
[359710515,1746270644790,-462.95,0.00019741,2]
[359710516,1746270644799,-458.70795027,0.00019741,2]
[359710517,1746270644808,-450.0,0.00019741,2]
[359710518,1746270644817,-450.0,0.00019741,2]
[359710519,1746270644827,-450.0,0.00019741,2]
[359710520,1746270644836,-450.0,0.00019741,2]
[359710521,1746270644846,-576.04,0.00019741,2]
[359710522,1746270644855,-480.76007786,0.00019741,2]
[359710523,1746270644865,-450.0,0.00019741,2]
[359710524,1746270644874,-450.0,0.00019741,2]
[359710525,1746270644883,-450.0,0.00019741,2]
[359710526,1746270644892,-450.0,0.00019741,2]
[359710527,1746270644902,-451.01,0.00019741,2]
[359710528,1746270644910,-500.0,0.00019741,2]
[359710529,1746270644919,-450.0,0.00019741,2]
[359710530,1746270644928,-2219.33,0.00019741,2]
[359710531,1746270644937,-744.66,0.00019741,2]
[359710532,1746270644946,-968.32,0.00019741,2]
[359710533,1746270644955,-450.0,0.00019741,2]
[359710534,1746270644964,-1991.83,0.00019741,2]
[359710535,1746270644973,-450.0,0.00019741,2]
[359710536,1746270644982,-450.0,0.00019741,2]
[359710537,1746270644991,-450.0,0.00019741,2]
[359710538,1746270644999,-675.79,0.00019741,2]
[359710539,1746270645009,-450.0,0.00019741,2]
[359710540,1746270645018,-681.14,0.00019741,2]
[359710541,1746270645026,-540.25,0.00019741,2]
[359710542,1746270645035,-500.0,0.00019742,2]
[359710543,1746270645044,-500.0,0.00019742,2]
[359710544,1746270645054,-500.0,0.00019742,2]
[359710545,1746270645063,-500.0,0.00019742,2]
[359710546,1746270645072,-450.0,0.00019743,2]
[359710547,1746270645081,-450.0,0.00019743,2]
[359710548,1746270645090,-450.0,0.00019743,2]
[359710549,1746270645099,-450.0,0.00019743,2]
[359710550,1746270645108,-450.0,0.00019743,2]
[359710551,1746270645117,-450.0,0.00019743,2]
[359710552,1746270645127,-583.88884764,0.00019743,2]
[359710553,1746270645135,-5208.60511293,0.00019753,2]
[359710554,1746270645144,-757.30140233,0.00019756,2]
[359710555,1746270645154,-179.26896799,0.0001977,2]
[359710556,1746270645163,-500.0,0.00019773,2]
[359710557,1746270645172,-624.94468854,0.00019773,2]
[359710558,1746270645181,-506.29141492,0.00019773,2]
[359710559,1746270645191,-501.02155493,0.00019773,2]
[359710560,1746270645201,-501.29466975,0.00019773,2]
[359710561,1746270645210,-500.0,0.00019773,2]
[359710562,1746270645219,-500.0,0.00019773,2]
[359710563,1746270645229,-291.86484364,0.00019773,2]
[359710564,1746270645239,-500.0,0.00019773,2]
[359710565,1746270645250,-500.0,0.00019773,2]
[359710566,1746270645261,-500.0,0.00019773,2]
[359710567,1746270645271,-500.0,0.00019773,2]
[359710568,1746270645280,-170.0108309,0.00019773,2]
[359710569,1746270645289,-500.0,0.00019773,2]
[359710570,1746270645299,-500.0,0.00019773,2]
[359710571,1746270645307,-5208.60511293,0.00019782,2]
[359710572,1746270645319,-382.2794925,0.00019799,2]
[359710573,1746270645329,-5208.60511293,0.00019812,2]
[359710574,1746270645342,-2000.0,0.0001984,2]
[359710575,1746270645351,-5208.60511293,0.00019841,2]
[359710576,1746270645360,-12500.0,0.00019856,2]
[359710577,1746270645370,-12500.0,0.00019865,2]
[359710578,1746270645379,-500.0,0.0001987,2]
[359710579,1746270645388,-5208.60511293,0.00019871,2]
[359710580,1746270645396,-450.0,0.00019873,2]
[359710581,1746270645405,-797.0,0.00019873,2]
[359710582,1746270645415,-1207.0,0.00019873,2]
[359710583,1746270645424,-550.0,0.00019873,2]
[359710584,1746270645433,-581.0,0.00019873,2]
[359710585,1746270645442,-914.0,0.00019873,2]
[359710586,1746270645451,-442.735,0.00019873,2]
[359710587,1746270645460,-523.86,0.00019873,2]
[359710588,1746270645470,-12500.0,0.00019874,2]
[359710589,1746270645479,-286.28925081,0.00019886,2]
[359710590,1746270645488,-189.10768055,0.00019886,2]
[359710591,1746270645497,-189.10768054,0.0001989,2]
[359710592,1746270645506,-189.10768054,0.00019893,2]
[359710593,1746270645514,-189.10768054,0.00019897,2]
[359710594,1746270645524,-5208.60511293,0.000199,2]
[359710595,1746270645533,-179.26896799,0.000199,2]
[359710596,1746270645542,-189.10768054,0.000199,2]
[359710597,1746270645551,-1895.04451814,0.000199,2]
[359710598,1746270645560,-186.41079795,0.000199,2]
[359710599,1746270645569,-300.15915061,0.000199,2]
[359710600,1746270645578,-650.2635508,0.000199,2]
[359710601,1746270645587,-4008.0,0.00019918,2]
[359710602,1746270645596,-153.0,0.00019918,2]
[359710603,1746270645605,-6756.0,0.00019918,2]
[359710604,1746270645614,-878.0,0.00019918,2]
[359710605,1746270645623,-286.28925081,0.00019932,2]
[359710606,1746270645631,-210.11,0.0001995,2]
[359710607,1746270645640,-2301.811,0.0001995,2]
[359710608,1746270645649,-151.0,0.00019953,2]
[359710609,1746270645658,-544.89074326,0.00019973,2]
[359710610,1746270645668,-500.0,0.00019973,2]
[359710611,1746270645679,-527.4996018,0.00019973,2]
[359710612,1746270645687,-500.0,0.00019973,2]
[359710613,1746270645697,-500.0,0.00019973,2]
[359710614,1746270645706,-500.0,0.00019973,2]
[359710615,1746270645715,-500.0,0.00019973,2]
[359710616,1746270645724,-163.0587868,0.00019973,2]
[359710617,1746270645734,-505.92257895,0.00019973,2]
[359710618,1746270645743,-505.26039964,0.00019973,2]
[359710620,1746270645752,-500.0,0.00019973,2]
[359710621,1746270645761,-517.26161729,0.00019973,2]
[359710622,1746270645771,-160.20238278,0.00019973,2]
[359710623,1746270645782,-500.0,0.00019973,2]
[359710624,1746270645791,-504.43483647,0.00019973,2]
[359710625,1746270645800,-500.0,0.00019973,2]
[359710626,1746270645809,-539.24803438,0.00019973,2]
[359710627,1746270645818,-152.63342926,0.00019973,2]
[359710628,1746270645827,-500.0,0.00019973,2]
[359710629,1746270645836,-286.28925081,0.00019977,2]
[359710630,1746270645845,-548.69815494,0.00019985,2]
[359710631,1746270645858,-512.40616649,0.00019985,2]
[359710632,1746270645867,-450.0,0.00019985,2]
[359710633,1746270645876,-500.0,0.00019985,2]
[359710634,1746270645885,-181.96258102,0.00019985,2]
[359710635,1746270645895,-226.32104667,0.00019985,2]
[359710636,1746270645904,-500.0,0.00019985,2]
[359710637,1746270645914,-500.0,0.00019985,2]
[359710638,1746270645923,-500.0,0.00019985,2]
[359710639,1746270645933,-293.43275605,0.00019985,2]
[359710640,1746270645942,-821.47,0.00019985,2]
[359710641,1746270645951,-821.47,0.00019985,2]
[359710642,1746270645960,-500.0,0.00019985,2]
[359710643,1746270646180,-500.0,0.00019985,2]
[359710644,1746270646190,-500.0,0.00019985,2]
[359710645,1746270646199,-500.0,0.00019985,2]
[359710646,1746270646209,-500.0,0.00019985,2]
[359710647,1746270646219,-500.0,0.00019985,2]
[359710648,1746270646229,-1356.0,0.00019986,2]
[359710649,1746270646238,-353302.6271334,0.00019986,2]
[359710650,1746270646248,-11894.0416469,0.00019986,2]
[359710651,1746270646258,-648.9706766,0.00019986,2]
[359710652,1746270646270,-1735.3373686,0.00019986,2]
[359710653,1746270646280,-40660.0248011,0.00019986,2]
[359710654,1746270646289,-2977.3489148,0.00019986,2]
[359710655,1746270646299,-500.0,0.00019999,2]
[359710656,1746270646310,-300.0,0.00019999,2]
[359710657,1746270646319,-300.0,0.00019999,2]
[359710658,1746270646328,-300.0,0.00019999,2]
[359710659,1746270646338,-300.0,0.00019999,2]
[359710660,1746270646349,-15659.24018754,0.00019999,2]
[359710661,1746270646359,-821.47,0.00019999,2]
[359710662,1746270646368,-821.47,0.00019999,2]
[359710663,1746270646377,-821.47,0.00019999,2]
[359710664,1746270646386,-821.47,0.00019999,2]
[359710665,1746270646396,-821.47,0.00019999,2]
[359710666,1746270646406,-821.47,0.00019999,2]
[359710667,1746270646415,-821.47,0.00019999,2]
[359710668,1746270646424,-821.47,0.00019999,2]
[359710670,1746270646434,-821.47,0.00019999,2]
[359710671,1746270646443,-821.47,0.00019999,2]
[359710672,1746270646455,-821.47,0.00019999,2]
[359710673,1746270646465,-821.47,0.00019999,2]
[359710674,1746270646474,-821.47,0.00019999,2]
[359710675,1746270646483,-821.47,0.00019999,2]
[359710676,1746270646493,-821.47,0.00019999,2]
[359710677,1746270646503,-821.47,0.00019999,2]
[359710678,1746270646513,-821.47,0.00019999,2]
[359710679,1746270646522,-821.47,0.00019999,2]
[359710680,1746270646531,-821.47,0.00019999,2]
[359710681,1746270646540,-821.62550993,0.00019999,2]
[359710682,1746270646549,-463.24295261,0.00019999,2]
[359710683,1746270646558,-500.0,0.00019999,2]
[359710684,1746270646567,-500.0,0.00019999,2]
[359710685,1746270646576,-500.0,0.00019999,2]
[359710686,1746270646585,-628.07395844,0.00019999,2]
[359710687,1746270646594,-150.0,0.00019999,2]
[359710688,1746270646605,-500.0,0.00019999,2]
[359710689,1746270646614,-150.0,0.00019999,2]
[359710690,1746270646623,-500.0,0.00019999,2]
[359710691,1746270646632,-3023.60712475,0.00019999,2]
[359710692,1746270646641,-500.0,0.00019999,2]
[359710693,1746270646651,-500.0,0.00019999,2]
[359710694,1746270646660,-500.0,0.00019999,2]
[359710695,1746270646670,-500.0,0.00019999,2]
[359710696,1746270646679,-500.0,0.00019999,2]
[359710697,1746270646688,-500.0,0.00019999,2]
[359710698,1746270646698,-353.05,0.00019999,2]
[359710699,1746270646707,-150.0,0.00019999,2]
[359710700,1746270646716,-150.0,0.00019999,2]
[359710701,1746270646725,-500.0,0.00019999,2]
[359710702,1746270646735,-500.0,0.00019999,2]
[359710703,1746270646744,-150.0,0.00019999,2]
[359710704,1746270646754,-150.0,0.00019999,2]
[359710705,1746270646764,-309.93405461,0.0002,2]
[359710706,1746270646774,-520335.28454632,0.0002,2]
[359710707,1746270646783,-836472.35635199,0.0002,2]
[359710708,1746270646793,-2587027.903773,0.0002,2]
[359710709,1746270646827,-20117.12551184,0.0002,2]
[359710710,1746270647015,-757.30140233,0.00019784,2]
[359710711,1746270647025,-1875.06085761,0.0002,2]
[359710712,1746270647036,-1924.6,0.0002,2]
[359710713,1746270647069,-888.28561574,0.0002,2]
[359710714,1746270647486,-1674.07,0.0001974,2]
[359710715,1746270647495,-757.30140233,0.00019813,2]
[359710716,1746270647504,-1140.0,0.00019918,2]
[359710717,1746270647513,-7756.29009779,0.0002,2]
[359710718,1746270647524,-554.04598938,0.0002,2]
[359710719,1746270647537,-1925.5392,0.0002,2]
[359710720,1746270658254,22012.11654938,0.00019057,2]
[359710721,1746270658281,948.35345062,0.00019057,2]
[359710723,1746270768298,1400.0,0.00019492,2]
[359710724,1746271123298,309.04,0.00016974,2]
[359710725,1746271123463,309.04,0.00019238,2]
[359710806,1746271378888,250.0,0.00018822,7]
[359710814,1746271585509,-335.87498963,0.00030137,120]
[359710815,1746271585539,-175.94402509,0.00030137,120]
[359710816,1746271585580,-500.0,0.00032876,120]
[359710817,1746271585607,-500.0,0.00032876,120]
[359710818,1746271585633,-500.0,0.00032876,120]
[359710819,1746271585870,-500.0,0.00032876,120]
[359710820,1746271585899,-230.86576304,0.00032876,120]
[359710878,1746271808454,1000.0,0.00018765,2]
[359710895,1746271832260,-151.0,0.00019591,2]
[359710896,1746271832269,-200.0,0.00019609,2]
[359710897,1746271832279,-207.4,0.00019627,2]
[359710898,1746271832288,-1200.0,0.00019637,2]
[359710899,1746271832297,-97.94571312,0.00019638,2]
[359710900,1746271832321,-1505.11732357,0.00019638,2]
[359710980,1746271838216,-457.78,0.00019638,2]
[359711032,1746271840283,-483.4637292,0.00019638,2]
[359711033,1746271840295,-580.85630194,0.00019638,2]
[359711034,1746271840305,-300.0,0.00019638,2]
[359711035,1746271840314,-213.30244653,0.00019639,2]
[359711036,1746271840323,-1000.0,0.00019639,2]
[359711037,1746271840332,-378.24516,0.00019639,2]
[359711038,1746271840342,-323.5865,0.0001964,2]
[359711039,1746271840351,-796.89072654,0.00019667,2]
[359711040,1746271840375,-2328.27234121,0.00019667,2]
[359711041,1746271840384,-378.24515998,0.00019668,2]
[359711042,1746271840393,-3125.16306775,0.00019696,2]
[359711043,1746271840402,-378.24515998,0.00019697,2]
[359711044,1746271840412,-3125.16306775,0.00019725,2]
[359711045,1746271840421,-378.24515998,0.00019726,2]
[359711046,1746271840430,-151.0,0.00019727,2]
[359711047,1746271840439,-668.65185757,0.00019727,2]
[359711048,1746271840449,-7748.26,0.00019728,2]
[359711049,1746271840458,-150.0,0.00019737,2]
[359711050,1746271840467,-596.24178262,0.00019737,2]
[359711051,1746271840476,-450.0,0.00019737,2]
[359711052,1746271840485,-450.0,0.00019737,2]
[359711053,1746271840495,-284.84788632,0.00019737,2]
[359711054,1746271840503,-450.0,0.00019737,2]
[359711055,1746271840513,-605.44,0.00019737,2]
[359711056,1746271840522,-533.76899943,0.00019737,2]
[359711057,1746271840533,-500.0,0.00019737,2]
[359711058,1746271840542,-500.0,0.00019737,2]
[359711059,1746271840551,-500.0,0.00019737,2]
[359711060,1746271840560,-500.0,0.00019737,2]
[359711061,1746271840570,-500.0,0.00019737,2]
[359711062,1746271840579,-500.0,0.00019737,2]
[359711063,1746271840588,-500.0,0.00019737,2]
[359711064,1746271840598,-500.0,0.00019737,2]
[359711065,1746271840607,-200.0,0.00019737,2]
[359711066,1746271840617,-500.0,0.00019737,2]
[359711067,1746271840627,-500.0,0.00019737,2]
[359711068,1746271840636,-500.0,0.00019737,2]
[359711069,1746271840645,-500.0,0.00019737,2]
[359711070,1746271840654,-500.0,0.00019737,2]
[359711071,1746271840663,-500.0,0.00019737,2]
[359711072,1746271840673,-500.0,0.00019737,2]
[359711073,1746271840682,-500.0,0.00019737,2]
[359711074,1746271840691,-500.0,0.00019737,2]
[359711075,1746271840700,-500.0,0.00019737,2]
[359711076,1746271840709,-500.0,0.00019737,2]
[359711077,1746271840719,-500.0,0.00019737,2]
[359711078,1746271840728,-500.0,0.00019737,2]
[359711079,1746271840737,-500.0,0.00019737,2]
[359711080,1746271840746,-500.0,0.00019737,2]
[359711081,1746271840756,-500.0,0.00019737,2]
[359711082,1746271840765,-542.12832744,0.00019737,2]
[359711083,1746271840774,-542.12832744,0.00019737,2]
[359711084,1746271840783,-542.12832744,0.00019737,2]
[359711085,1746271840793,-542.12832744,0.00019737,2]
[359711086,1746271840802,-542.12832744,0.00019737,2]
[359711087,1746271840811,-542.12832744,0.00019737,2]
[359711088,1746271840820,-542.12832744,0.00019737,2]
[359711089,1746271840830,-542.12832744,0.00019737,2]
[359711090,1746271840839,-542.12832744,0.00019737,2]
[359711091,1746271840848,-542.12832744,0.00019737,2]
[359711092,1746271840858,-542.12832744,0.00019737,2]
[359711093,1746271840867,-542.12832744,0.00019737,2]
[359711094,1746271840877,-542.12832744,0.00019737,2]
[359711095,1746271840886,-542.12832744,0.00019737,2]
[359711096,1746271840895,-542.12832744,0.00019737,2]
[359711097,1746271840904,-542.12832744,0.00019737,2]
[359711098,1746271840914,-542.12832744,0.00019737,2]
[359711100,1746271841147,-542.12832744,0.00019737,2]
[359711101,1746271841159,-542.12832744,0.00019737,2]
[359711102,1746271841168,-542.12832744,0.00019737,2]
[359711103,1746271841178,-542.12832744,0.00019737,2]
[359711104,1746271841187,-542.12832744,0.00019737,2]
[359711105,1746271841196,-542.12832744,0.00019737,2]
[359711106,1746271841205,-542.12832744,0.00019737,2]
[359711107,1746271841215,-542.12832744,0.00019737,2]
[359711108,1746271841224,-542.12832744,0.00019737,2]
[359711109,1746271841234,-542.12832744,0.00019737,2]
[359711110,1746271841243,-542.12832744,0.00019737,2]
[359711111,1746271841252,-542.12832744,0.00019737,2]
[359711112,1746271841262,-542.12832744,0.00019737,2]
[359711113,1746271841271,-542.12832744,0.00019737,2]
[359711114,1746271841280,-542.12832744,0.00019737,2]
[359711115,1746271841290,-542.12832744,0.00019737,2]
[359711116,1746271841299,-542.12832744,0.00019737,2]
[359711117,1746271841308,-1174.61137613,0.00019737,2]
[359711118,1746271841318,-1174.61137613,0.00019737,2]
[359711119,1746271841327,-1174.61137613,0.00019737,2]
[359711120,1746271841336,-1174.61137613,0.00019737,2]
[359711121,1746271841346,-1174.61137613,0.00019737,2]
[359711122,1746271841355,-1174.61137613,0.00019737,2]
[359711123,1746271841365,-1174.61137613,0.00019737,2]
[359711124,1746271841374,-1174.61137613,0.00019737,2]
[359711125,1746271841383,-1174.61137613,0.00019737,2]
[359711126,1746271841392,-1174.61137613,0.00019737,2]
[359711127,1746271841401,-1174.61137613,0.00019737,2]
[359711128,1746271841410,-1174.61137613,0.00019737,2]
[359711129,1746271841419,-1174.61137613,0.00019737,2]
[359711130,1746271841428,-1174.61137613,0.00019737,2]
[359711131,1746271841437,-1174.61137613,0.00019737,2]
[359711132,1746271841446,-305.48500999,0.00019737,2]
[359711133,1746271841455,-186.165555,0.00019738,2]
[359711134,1746271841465,-450.0,0.00019738,2]
[359711135,1746271841474,-450.0,0.00019738,2]
[359711136,1746271841483,-450.0,0.00019738,2]
[359711137,1746271841492,-450.0,0.00019738,2]
[359711138,1746271841501,-450.0,0.00019738,2]
[359711139,1746271841510,-450.0,0.00019738,2]
[359711140,1746271841520,-450.0,0.00019738,2]
[359711141,1746271841529,-450.0,0.00019738,2]
[359711142,1746271841538,-450.0,0.00019738,2]
[359711143,1746271841547,-450.0,0.00019738,2]
[359711144,1746271841556,-450.0,0.00019738,2]
[359711145,1746271841565,-916.95,0.00019738,2]
[359711146,1746271841574,-450.0,0.00019738,2]
[359711147,1746271841583,-614.79,0.00019738,2]
[359711148,1746271841592,-450.0,0.00019738,2]
[359711149,1746271841601,-506.61,0.00019738,2]
[359711150,1746271841611,-450.0,0.00019738,2]
[359711151,1746271841620,-450.0,0.00019738,2]
[359711152,1746271841630,-450.0,0.00019738,2]
[359711153,1746271841638,-450.0,0.00019738,2]
[359711154,1746271841648,-450.0,0.00019738,2]
[359711155,1746271841657,-450.0,0.00019738,2]
[359711156,1746271841666,-153.38,0.00019738,2]
[359711157,1746271841676,-450.0,0.00019738,2]
[359711158,1746271841685,-450.0,0.00019738,2]
[359711159,1746271841694,-261.63,0.00019738,2]
[359711160,1746271841703,-487.46,0.00019738,2]
[359711161,1746271841712,-450.0,0.00019738,2]
[359711162,1746271841721,-568.87,0.00019738,2]
[359711163,1746271841730,-450.0,0.00019738,2]
[359711164,1746271841740,-272.83,0.00019738,2]
[359711165,1746271841749,-450.0,0.00019738,2]
[359711166,1746271841758,-578.57,0.00019738,2]
[359711167,1746271841767,-450.0,0.00019738,2]
[359711168,1746271841776,-481.624246,0.00019738,2]
[359711169,1746271841785,-450.0,0.00019738,2]
[359711170,1746271841794,-450.0,0.00019738,2]
[359711171,1746271841803,-450.0,0.00019738,2]
[359711172,1746271841813,-450.0,0.00019738,2]
[359711173,1746271841822,-450.0,0.00019738,2]
[359711174,1746271841831,-450.0,0.00019738,2]
[359711175,1746271841841,-769.51,0.00019738,2]
[359711176,1746271841850,-450.0,0.00019738,2]
[359711177,1746271841860,-777.08,0.00019738,2]
[359711178,1746271841869,-450.0,0.00019738,2]
[359711179,1746271841878,-450.0,0.00019738,2]
[359711180,1746271841887,-450.0,0.00019738,2]
[359711181,1746271841897,-450.0,0.00019738,2]
[359711182,1746271841906,-450.0,0.00019738,2]
[359711183,1746271841915,-450.0,0.00019738,2]
[359711184,1746271841924,-450.0,0.00019738,2]
[359711185,1746271841933,-500.0,0.00019738,2]
[359711186,1746271841942,-450.0,0.00019738,2]
[359711187,1746271841951,-699.01,0.00019738,2]
[359711188,1746271841960,-450.0,0.00019738,2]
[359711189,1746271841970,-450.0,0.00019738,2]
[359711190,1746271841979,-852.58,0.00019738,2]
[359711191,1746271841988,-479.13,0.00019738,2]
[359711192,1746271841997,-939.79,0.00019738,2]
[359711193,1746271842008,-450.0,0.00019738,2]
[359711194,1746271842018,-450.0,0.00019738,2]
[359711195,1746271842027,-1381.61,0.00019738,2]
[359711196,1746271842037,-450.0,0.00019738,2]
[359711197,1746271842047,-4563.56,0.00019738,2]
[359711198,1746271842056,-450.0,0.00019738,2]
[359711199,1746271842066,-450.0,0.00019738,2]
[359711200,1746271842075,-506.69,0.00019738,2]
[359711201,1746271842086,-450.0,0.00019738,2]
[359711202,1746271842096,-450.0,0.00019738,2]
[359711203,1746271842105,-500.0,0.00019738,2]
[359711204,1746271842115,-450.0,0.00019738,2]
[359711205,1746271842124,-500.0,0.00019738,2]
[359711206,1746271842134,-5182.81,0.00019738,2]
[359711207,1746271842144,-450.0,0.00019738,2]
[359711208,1746271842153,-450.0,0.00019738,2]
[359711209,1746271842163,-450.0,0.00019738,2]
[359711210,1746271842172,-450.0,0.00019738,2]
[359711211,1746271842181,-450.0,0.00019738,2]
[359711212,1746271842190,-450.0,0.00019738,2]
[359711213,1746271842199,-450.73,0.00019738,2]
[359711214,1746271842208,-4653.44,0.00019738,2]
[359711215,1746271842217,-1030.33,0.00019738,2]
[359711216,1746271842228,-450.0,0.00019738,2]
[359711217,1746271842237,-1543.07,0.00019738,2]
[359711218,1746271842246,-450.0,0.00019738,2]
[359711219,1746271842255,-450.0,0.00019738,2]
[359711220,1746271842265,-450.0,0.00019738,2]
[359711221,1746271842274,-502.55,0.00019738,2]
[359711222,1746271842284,-450.0,0.00019738,2]